bitfinex-derivatives/quotes_BNBF0:USTF0_20251225
["timestamp","ask_amount","ask_price","bid_price","bid_amount"]
[1766664980192,1.1959467,836.92,836.1,1.19097318]
[1766664980392,0.89228537,837.02,836.1,1.19097318]
[1766664980594,1.1959467,837.01,836.1,1.19097318]
[1766664980794,1.1959467,837.0,836.1,1.19097318]
[1766664980993,1.1959467,836.99,836.1,1.19097318]
[1766664981192,1.1959467,836.98,836.1,1.19097318]
[1766664981495,1.1959467,836.97,836.1,1.19097318]
[1766664981696,1.1959467,836.96,836.1,1.19097318]
[1766664981896,1.1959467,836.95,836.1,1.19097318]
[1766664982093,1.1959467,836.94,836.1,1.19097318]
[1766664982396,1.1959467,836.93,836.1,1.19097318]
[1766664982692,1.1959467,836.92,836.1,1.19097318]
[1766664982992,0.89228537,837.02,836.1,1.19097318]
[1766664983201,1.1959467,837.01,836.1,1.19097318]
[1766664983393,1.1959467,837.0,836.1,1.19097318]
[1766664983592,1.1959467,836.99,836.1,1.19097318]
[1766664983794,1.1959467,836.98,836.1,1.19097318]
[1766664983992,1.1959467,836.97,836.1,1.19097318]
[1766664984194,1.1959467,836.96,836.1,1.19097318]
[1766664984394,1.1959467,836.95,836.1,1.19097318]
[1766664984593,0.20797165,836.91,836.1,1.19097318]
[1766664989098,0.20797165,836.91,836.11,1.19097318]
[1766665007215,0.20797165,836.91,836.12,1.19097318]
[1766665011223,1.19594648,836.9,836.12,1.19097318]
[1766665011422,0.20797165,836.91,836.12,1.19097318]
[1766665011716,1.19594648,836.9,836.12,1.19097318]
[1766665011920,0.20797165,836.91,836.12,1.19097318]
[1766665012123,1.19594648,836.9,836.12,1.19097318]
[1766665012322,0.20797165,836.91,836.12,1.19097318]
[1766665012517,1.19594648,836.9,836.12,1.19097318]
[1766665012717,0.20797165,836.91,836.12,1.19097318]
[1766665012921,1.19594648,836.9,836.12,1.19097318]
[1766665013118,0.20797165,836.91,836.12,1.19097318]
[1766665013322,1.19594648,836.9,836.12,1.19097318]
[1766665013517,0.20797165,836.91,836.12,1.19097318]
[1766665013719,1.19594648,836.9,836.12,1.19097318]
[1766665014018,0.20797165,836.91,836.12,1.19097318]
[1766665014223,1.19594648,836.9,836.13,1.19097318]
[1766665014419,0.20797165,836.91,836.13,1.19097318]
[1766665014622,1.19594648,836.9,836.13,1.19097318]
[1766665014922,0.20797165,836.91,836.13,1.19097318]
[1766665015218,1.19594648,836.9,836.13,1.19097318]
[1766665015421,1.19594648,836.89,836.13,1.19097318]
[1766665015622,0.20797165,836.91,836.13,1.19097318]
[1766665015822,1.19594577,836.9,836.13,1.19097318]
[1766665016023,1.19594577,836.89,836.13,1.19097318]
[1766665016317,0.20797165,836.91,836.14,1.19097318]
[1766665016518,1.19594577,836.9,836.14,1.19097318]
[1766665016818,1.19594577,836.89,836.14,1.19097318]
[1766665017022,0.20797165,836.91,836.14,1.19097318]
[1766665017217,1.19594577,836.9,836.14,1.19097318]
[1766665017419,1.19594577,836.89,836.14,1.19097318]
[1766665017619,0.20797165,836.91,836.14,1.19097318]
[1766665017822,1.19594577,836.9,836.14,1.19097318]
[1766665018023,1.19594577,836.89,836.14,1.19097318]
[1766665018221,0.20797165,836.91,836.14,1.19097318]
[1766665018424,1.19594577,836.9,836.14,1.19097318]
[1766665018720,1.19594577,836.89,836.14,1.19097318]
[1766665018920,0.20797165,836.91,836.14,1.19097318]
[1766665019120,1.19594577,836.9,836.14,1.19097318]
[1766665019322,1.19594577,836.89,836.14,1.19097318]
[1766665019522,0.20797165,836.91,836.14,1.19097318]
[1766665019720,1.19594577,836.9,836.14,1.19097318]
[1766665019924,1.19594577,836.89,836.14,1.19097318]
[1766665020126,0.20797165,836.91,836.14,1.19097318]
[1766665020426,1.19594565,836.9,836.14,1.19097318]
[1766665020626,1.19594565,836.89,836.14,1.19097318]
[1766665020927,0.20797165,836.91,836.14,1.19097318]
[1766665021126,1.19594565,836.9,836.14,1.19097318]
[1766665021327,1.19594565,836.89,836.14,1.19097318]
[1766665021627,0.20797165,836.91,836.14,1.19097318]
[1766665021827,1.19594565,836.9,836.14,1.19097318]
[1766665022127,1.19594565,836.89,836.14,1.19097318]
[1766665022320,0.20797165,836.91,836.14,1.19097318]
[1766665022523,1.19594565,836.9,836.14,1.19097318]
[1766665022723,1.19594565,836.89,836.14,1.19097318]
[1766665022925,0.20797165,836.91,836.14,1.19097318]
[1766665023127,1.19594565,836.9,836.14,1.19097318]
[1766665023326,1.19594565,836.89,836.14,1.19097318]
[1766665023525,0.20797165,836.91,836.14,1.19097318]
[1766665023724,1.19594565,836.9,836.14,1.19097318]
[1766665023930,1.19594565,836.89,836.14,1.19097318]
[1766665024130,0.20797165,836.91,836.14,1.19097318]
[1766665024329,1.19594565,836.9,836.14,1.19097318]
[1766665024631,1.19594565,836.89,836.14,1.19097318]
[1766665024832,0.20797165,836.91,836.14,1.19097318]
[1766665025131,1.19594565,836.9,836.14,1.19097318]
[1766665025332,1.19594565,836.89,836.14,1.19097318]
[1766665025528,0.20797165,836.91,836.14,1.19097318]
[1766665025732,1.19594554,836.9,836.14,1.19097318]
[1766665025932,1.19594554,836.89,836.14,1.19097318]
[1766665026133,0.20797165,836.91,836.14,1.19097318]
[1766665026332,1.19594517,836.9,836.14,1.19097318]
[1766665026529,1.19594517,836.89,836.14,1.19097318]
[1766665026729,0.20797165,836.91,836.14,1.19097318]
[1766665027033,1.19594517,836.9,836.14,1.19097318]
[1766665027233,1.19594517,836.89,836.14,1.19097318]
[1766665027434,0.20797165,836.91,836.14,1.19097318]
[1766665027634,1.19594517,836.9,836.14,1.19097318]
[1766665027830,0.20797165,836.91,836.14,1.19097318]
[1766665027831,1.19594517,836.89,836.14,1.19097318]
[1766665028030,0.20797165,836.91,836.14,1.19097318]
[1766665028234,1.19594517,836.9,836.14,1.19097318]
[1766665028434,1.19594517,836.89,836.14,1.19097318]
[1766665028734,0.20797165,836.91,836.14,1.19097318]
[1766665029034,1.19594517,836.9,836.14,1.19097318]
[1766665029235,1.19594517,836.89,836.14,1.19097318]
[1766665029432,0.20797165,836.91,836.14,1.19097318]
[1766665029732,1.19594517,836.9,836.14,1.19097318]
[1766665030032,1.19594517,836.89,836.14,1.19097318]
[1766665030235,0.20797165,836.91,836.14,1.19097318]
[1766665030434,1.19594517,836.9,836.14,1.19097318]
[1766665030633,1.19594517,836.89,836.14,1.19097318]
[1766665030932,0.20797165,836.91,836.14,1.19097318]
[1766665031133,1.19594517,836.9,836.14,1.19097318]
[1766665031337,1.19594517,836.89,836.14,1.19097318]
[1766665031538,0.20797165,836.91,836.14,1.19097318]
[1766665031734,1.19594517,836.9,836.14,1.19097318]
[1766665031939,1.19594517,836.89,836.14,1.19097318]
[1766665032139,0.20797165,836.91,836.14,1.19097318]
[1766665032444,1.19594517,836.9,836.14,1.19097318]
[1766665032635,1.19594517,836.89,836.14,1.19097318]
[1766665032835,0.20797165,836.91,836.14,1.19097318]
[1766665033134,1.19594517,836.9,836.14,1.19097318]
[1766665033333,1.19594517,836.89,836.14,1.19097318]
[1766665033532,0.20797165,836.91,836.14,1.19097318]
[1766665033734,1.19594517,836.9,836.14,1.19097318]
[1766665033938,1.19594517,836.89,836.14,1.19097318]
[1766665034138,0.20797165,836.91,836.14,1.19097318]
[1766665034439,1.19594517,836.9,836.14,1.19097318]
[1766665034631,1.19594517,836.89,836.14,1.19097318]
[1766665034838,0.20797165,836.91,836.14,1.19097318]
[1766665035035,1.19594564,836.9,836.14,1.19097318]
[1766665035237,1.19594564,836.89,836.14,1.19097318]
[1766665035436,0.20797165,836.91,836.14,1.19097318]
[1766665035640,1.19594564,836.9,836.14,1.19097318]
[1766665035833,1.19594564,836.89,836.14,1.19097318]
[1766665036038,0.20797165,836.91,836.14,1.19097318]
[1766665036237,1.19594564,836.9,836.14,1.19097318]
[1766665036436,1.19594564,836.89,836.14,1.19097318]
[1766665036638,0.20797165,836.91,836.14,1.19097318]
[1766665036843,1.19594564,836.9,836.14,1.19097318]
[1766665037036,1.19594564,836.89,836.14,1.19097318]
[1766665037236,0.20797165,836.91,836.14,1.19097318]
[1766665037440,1.19594564,836.9,836.14,1.19097318]
[1766665037641,1.19594564,836.89,836.14,1.19097318]
[1766665037840,0.20797165,836.91,836.14,1.19097318]
[1766665038040,1.19594564,836.9,836.14,1.19097318]
[1766665038337,1.19594564,836.89,836.14,1.19097318]
[1766665038536,0.20797165,836.91,836.14,1.19097318]
[1766665038738,1.19594588,836.9,836.14,1.19097318]
[1766665038937,1.19594588,836.89,836.14,1.19097318]
[1766665039141,0.20797165,836.91,836.14,1.19097318]
[1766665039341,1.19594588,836.9,836.14,1.19097318]
[1766665039539,1.19594588,836.89,836.14,1.19097318]
[1766665039742,0.20797165,836.91,836.14,1.19097318]
[1766665039939,1.19594588,836.9,836.14,1.19097318]
[1766665040239,1.19594588,836.89,836.14,1.19097318]
[1766665040539,0.20797165,836.91,836.14,1.19097318]
[1766665040742,1.19594612,836.9,836.14,1.19097318]
[1766665041042,0.20797165,836.91,836.14,1.19097318]
[1766665041043,1.19594612,836.89,836.14,1.19097318]
[1766665041240,0.20797165,836.91,836.14,1.19097318]
[1766665041440,1.19594612,836.9,836.14,1.19097318]
[1766665041636,1.19594612,836.89,836.14,1.19097318]
[1766665041838,0.20797165,836.91,836.14,1.19097318]
[1766665042043,1.195946,836.9,836.14,1.19097318]
[1766665042343,1.195946,836.89,836.14,1.19097318]
[1766665042544,0.20797165,836.91,836.14,1.19097318]
[1766665042744,1.195946,836.9,836.14,1.19097318]
[1766665043043,1.195946,836.89,836.14,1.19097318]
[1766665043339,0.20797165,836.91,836.14,1.19097318]
[1766665043543,1.195946,836.9,836.15,1.19097318]
[1766665043740,0.20797165,836.91,836.15,1.19097318]
[1766665043945,1.19592507,836.9,836.15,1.19097318]
[1766665044145,0.20797165,836.91,836.15,1.19097318]
[1766665044354,1.19592507,836.9,836.15,1.19097318]
[1766665044546,0.20797165,836.91,836.15,1.19097318]
[1766665044845,1.1959246,836.9,836.15,1.19097318]
[1766665045045,0.20797165,836.91,836.15,1.19097318]
[1766665045245,1.1959246,836.9,836.15,1.19097318]
[1766665045547,0.20797165,836.91,836.15,1.19097318]
[1766665045846,1.1959246,836.9,836.15,1.19097318]
[1766665046045,0.20797165,836.91,836.15,1.19097318]
[1766665046242,1.1959246,836.9,836.15,1.19097318]
[1766665046442,0.20797165,836.91,836.15,1.19097318]
[1766665046641,1.1959246,836.9,836.15,1.19097318]
[1766665046845,0.20797165,836.91,836.15,1.19097318]
[1766665047143,1.1959246,836.9,836.15,1.19097318]
[1766665047346,0.20797165,836.91,836.15,1.19097318]
[1766665047547,1.1959246,836.9,836.15,1.19097318]
[1766665047750,0.20797165,836.91,836.15,1.19097318]
[1766665048050,0.20797165,836.91,836.16,1.19097318]
[1766665049450,0.20797165,836.91,836.15,1.19097318]
[1766665054261,0.20797165,836.91,836.17,1.19097318]
[1766665054554,0.89228537,837.05,836.19,1.19097318]
[1766665054855,4.13357139,838.26,835.13,4.1484817]
[1766665054856,0.20795176,837.0,836.26,1.19097318]
[1766665055252,0.20795176,837.0,836.25,1.19097318]
[1766665056352,0.20795176,837.0,836.24,1.19097318]
[1766665057453,0.20795176,837.0,836.23,1.19097318]
[1766665058359,0.89228537,837.31,836.36,1.19097318]
[1766665058554,0.2079089,837.25,836.4,1.19097318]
[1766665059459,0.2079089,837.25,836.38,1.19097318]
[1766665060358,0.2079089,837.25,836.36,1.19097318]
[1766665061163,0.2079089,837.25,836.37,1.19097318]
[1766665061362,0.2079089,837.25,836.38,1.19097318]
[1766665062560,0.2079089,837.25,836.37,1.19097318]
[1766665063366,0.2079089,837.25,836.36,1.19097318]
[1766665064166,0.2079089,837.25,836.35,1.19097318]
[1766665065263,0.2079089,837.25,836.34,1.19097318]
[1766665066267,0.2079089,837.25,836.33,1.19097318]
[1766665067368,0.2079089,837.25,836.32,1.19097318]
[1766665069269,0.2079089,837.25,836.31,1.19097318]
[1766665071571,0.2079089,837.25,836.3,1.19097318]
[1766665074275,0.2079089,837.25,836.35,1.19097318]
[1766665075375,0.2079089,837.25,836.34,1.19097318]
[1766665077172,0.2079089,837.25,836.35,1.19097318]
[1766665077376,0.2079089,837.25,836.34,1.19097318]
[1766665083380,0.88942906,837.61,836.34,1.19097318]
[1766665083681,0.20785923,837.37,836.35,1.19097318]
[1766665087284,0.20785923,837.37,836.36,1.19097318]
[1766665089396,0.20785923,837.37,836.37,1.19097318]
[1766665091292,0.20785923,837.37,836.38,1.19097318]
[1766665093290,0.20785923,837.37,836.39,1.19097318]
[1766665094496,0.20785923,837.37,836.4,1.19097318]
[1766665095291,0.20785923,837.37,836.41,1.19097318]
[1766665096293,0.20785923,837.37,836.42,1.19097318]
[1766665097491,0.20785923,837.37,836.43,1.19097318]
[1766665098396,0.20785923,837.37,836.45,1.19097318]
[1766665099396,0.20785923,837.37,836.47,1.19097318]
[1766665100392,0.20785923,837.37,836.48,1.19097318]
[1766665100897,1.19543717,837.36,836.41,1.19097318]
[1766665101195,1.19543717,837.36,835.41,4.1484817]
[1766665101196,1.19543717,837.35,836.38,1.19097318]
[1766665101394,1.19543717,837.34,836.39,1.19097318]
[1766665101592,1.19543717,837.33,836.39,1.19097318]
[1766665101793,1.19543717,837.32,836.39,1.19097318]
[1766665101992,1.19543717,837.31,836.39,1.19097318]
[1766665102197,1.19543717,837.3,836.39,1.19097318]
[1766665102399,1.19543717,837.29,836.41,1.19097318]
[1766665102600,1.19543717,837.28,836.41,1.19097318]
[1766665102798,1.19543717,837.27,836.41,1.19097318]
[1766665102998,1.19543717,837.26,836.41,1.19097318]
[1766665103300,1.19548773,837.25,836.41,1.19097318]
[1766665103599,0.88942906,837.35,836.42,1.19097318]
[1766665103793,1.19548679,837.34,836.42,1.19097318]
[1766665103998,1.19548679,837.33,836.42,1.19097318]
[1766665104194,1.19548679,837.32,836.42,1.19097318]
[1766665104395,1.19548679,837.31,836.42,1.19097318]
[1766665104697,1.19548679,837.3,836.42,1.19097318]
[1766665104894,1.19548679,837.29,836.42,1.19097318]
[1766665105099,1.19548679,837.28,836.42,1.19097318]
[1766665105395,1.19548679,837.27,836.42,1.19097318]
[1766665105597,1.19548679,837.26,836.42,1.19097318]
[1766665105795,1.19548679,837.25,836.42,1.19097318]
[1766665105994,0.88942906,837.35,836.42,1.19097318]
[1766665106194,1.19548679,837.34,836.42,1.19097318]
[1766665106398,1.19548679,837.33,836.42,1.19097318]
[1766665106698,1.19548679,837.32,836.42,1.19097318]
[1766665106898,1.19548679,837.31,836.42,1.19097318]
[1766665107100,1.19548679,837.3,836.42,1.19097318]
[1766665107299,1.19548679,837.29,836.42,1.19097318]
[1766665107497,1.19548679,837.28,836.41,1.19097318]
[1766665107696,1.19548679,837.27,836.41,1.19097318]
[1766665107998,1.19548679,837.26,836.41,1.19097318]
[1766665108199,1.19548679,837.25,836.41,1.19097318]
[1766665108498,0.88942906,837.35,836.41,1.19097318]
[1766665108802,1.19548714,837.34,836.41,1.19097318]
[1766665109097,1.19548714,837.33,836.41,1.19097318]
[1766665109300,1.19548714,837.32,836.41,1.19097318]
[1766665109500,1.19548714,837.31,836.41,1.19097318]
[1766665109698,1.19548714,837.3,836.41,1.19097318]
[1766665109900,1.19548714,837.29,836.41,1.19097318]
[1766665110098,1.19548714,837.28,836.41,1.19097318]
[1766665110298,1.19548714,837.27,836.41,1.19097318]
[1766665110497,1.19548714,837.26,836.41,1.19097318]
[1766665110702,0.88942906,837.36,836.41,1.19097318]
[1766665110999,1.19548809,837.35,836.41,1.19097318]
[1766665111197,1.19548809,837.34,836.41,1.19097318]
[1766665111499,1.19548809,837.33,836.41,1.19097318]
[1766665111698,1.19548809,837.32,836.41,1.19097318]
[1766665111900,1.19548809,837.31,836.41,1.19097318]
[1766665112099,1.19548809,837.3,836.41,1.19097318]
[1766665112300,1.19548809,837.29,836.41,1.19097318]
[1766665112506,1.19548809,837.28,836.41,1.19097318]
[1766665112804,0.88942906,837.36,836.41,1.19097318]
[1766665113004,1.19548832,837.35,836.41,1.19097318]
[1766665113304,1.19548832,837.34,836.41,1.19097318]
[1766665113502,1.19548832,837.33,836.41,1.19097318]
[1766665113704,1.19548832,837.32,836.41,1.19097318]
[1766665113904,1.19548832,837.31,836.41,1.19097318]
[1766665114205,1.19548832,837.3,836.41,1.19097318]
[1766665114404,1.19548832,837.29,836.41,1.19097318]
[1766665114603,1.19548832,837.28,836.41,1.19097318]
[1766665114802,1.19548832,837.27,836.41,1.19097318]
[1766665115001,1.19548832,837.26,836.41,1.19097318]
[1766665115201,0.88942906,837.36,836.41,1.19097318]
[1766665115403,1.1954883,837.35,836.4,1.19097318]
[1766665115602,1.1954883,837.34,836.4,1.19097318]
[1766665115806,1.1954883,837.33,836.4,1.19097318]
[1766665116002,1.1954883,837.32,836.4,1.19097318]
[1766665116206,1.1954883,837.31,836.4,1.19097318]
[1766665116404,1.1954883,837.3,836.4,1.19097318]
[1766665116604,1.1954883,837.29,836.4,1.19097318]
[1766665116804,1.1954883,837.28,836.4,1.19097318]
[1766665117004,1.1954883,837.27,836.4,1.19097318]
[1766665117207,1.1954883,837.26,836.4,1.19097318]
[1766665117404,0.88942906,837.36,836.4,1.19097318]
[1766665117603,1.19548785,837.35,836.4,1.19097318]
[1766665117807,1.19548785,837.34,836.4,1.19097318]
[1766665118107,1.19548785,837.33,836.4,1.19097318]
[1766665118408,1.19548785,837.32,836.4,1.19097318]
[1766665118608,1.19548785,837.31,836.4,1.19097318]
[1766665118907,1.19548785,837.3,836.4,1.19097318]
[1766665119207,1.19548785,837.29,836.4,1.19097318]
[1766665119606,1.19548785,837.28,836.4,1.19097318]
[1766665119804,1.19548785,837.27,836.4,1.19097318]
[1766665120004,1.19548785,837.26,836.4,1.19097318]
[1766665120309,1.09728829,837.37,836.4,1.19097318]
[1766665120604,1.19548785,837.36,836.4,1.19097318]
[1766665120804,1.19548785,837.35,836.4,1.19097318]
[1766665121003,1.19548785,837.34,836.4,1.19097318]
[1766665121201,1.19548785,837.33,836.4,1.19097318]
[1766665121408,1.19548785,837.32,836.4,1.19097318]
[1766665121607,1.19548785,837.31,836.4,1.19097318]
[1766665121804,1.19548785,837.3,836.4,1.19097318]
[1766665122008,1.19548785,837.29,836.4,1.19097318]
[1766665122310,1.19548785,837.28,836.4,1.19097318]
[1766665122605,1.19548785,837.27,836.4,1.19097318]
[1766665122804,1.09728829,837.37,836.4,1.19097318]
[1766665123003,1.19548785,837.36,836.4,1.19097318]
[1766665123205,1.19548785,837.35,836.4,1.19097318]
[1766665123409,1.19548785,837.34,836.4,1.19097318]
[1766665123609,1.19548785,837.33,836.4,1.19097318]
[1766665123909,1.19548785,837.32,836.4,1.19097318]
[1766665124109,1.19548785,837.31,836.4,1.19097318]
[1766665124306,1.19548785,837.3,836.4,1.19097318]
[1766665124606,1.19548785,837.29,836.4,1.19097318]
[1766665124806,1.19548785,837.28,836.4,1.19097318]
[1766665125005,1.19548785,837.27,836.4,1.19097318]
[1766665125206,1.09728829,837.37,836.4,1.19097318]
[1766665125405,1.19548785,837.36,836.4,1.19097318]
[1766665125610,1.19548785,837.35,836.4,1.19097318]
[1766665125810,1.19548785,837.34,836.4,1.19097318]
[1766665126010,1.19548785,837.33,836.4,1.19097318]
[1766665126207,1.19548785,837.32,836.4,1.19097318]
[1766665126411,1.19548785,837.31,836.4,1.19097318]
[1766665126612,1.19548785,837.3,836.4,1.19097318]
[1766665126813,1.19548785,837.29,836.4,1.19097318]
[1766665127008,1.19548785,837.28,836.4,1.19097318]
[1766665127212,1.19548785,837.27,836.4,1.19097318]
[1766665127508,1.19548785,837.26,836.4,1.19097318]
[1766665127713,1.09728829,837.37,836.4,1.19097318]
[1766665127916,1.19548785,837.36,836.4,1.19097318]
[1766665128115,1.19548785,837.35,836.4,1.19097318]
[1766665128411,1.19548785,837.34,836.4,1.19097318]
[1766665128610,1.19548785,837.33,836.4,1.19097318]
[1766665128910,1.19548785,837.32,836.4,1.19097318]
[1766665129111,1.19548785,837.31,836.4,1.19097318]
[1766665129312,1.19548785,837.3,836.4,1.19097318]
[1766665129515,1.19548785,837.29,836.4,1.19097318]
[1766665129715,1.19548785,837.28,836.4,1.19097318]
[1766665129911,1.19548785,837.27,836.4,1.19097318]
[1766665130113,1.19548785,837.26,836.4,1.19097318]
[1766665130315,0.88942906,837.36,836.4,1.19097318]
[1766665130618,1.19548703,837.35,836.4,1.19097318]
[1766665130917,1.19548703,837.34,836.4,1.19097318]
[1766665131215,1.19548703,837.33,836.4,1.19097318]
[1766665131413,1.19548703,837.32,836.4,1.19097318]
[1766665131614,1.19548703,837.31,836.4,1.19097318]
[1766665131818,1.19548703,837.3,836.4,1.19097318]
[1766665132018,1.19548703,837.29,836.4,1.19097318]
[1766665132214,1.19548703,837.28,836.4,1.19097318]
[1766665132419,1.19548703,837.27,836.41,1.19097318]
[1766665132620,1.19548703,837.26,836.41,1.19097318]
[1766665132820,0.88942906,837.36,836.41,1.19097318]
[1766665133017,1.19548703,837.35,836.41,1.19097318]
[1766665133320,1.19548703,837.34,836.41,1.19097318]
[1766665133520,1.19548703,837.33,836.41,1.19097318]
[1766665133721,1.19548703,837.32,836.41,1.19097318]
[1766665134016,1.19548703,837.31,836.41,1.19097318]
[1766665134217,1.19548703,837.3,836.41,1.19097318]
[1766665134421,1.19548703,837.29,836.41,1.19097318]
[1766665134620,1.19548703,837.28,836.41,1.19097318]
[1766665134921,1.19548703,837.27,836.41,1.19097318]
[1766665135122,1.19548703,837.26,836.41,1.19097318]
[1766665135319,0.88942906,837.36,836.41,1.19097318]
[1766665135517,1.19548703,837.35,836.41,1.19097318]
[1766665135821,1.19548703,837.34,836.41,1.19097318]
[1766665136022,1.19548703,837.33,836.41,1.19097318]
[1766665136222,1.19548703,837.32,836.41,1.19097318]
[1766665136421,1.19548703,837.31,836.41,1.19097318]
[1766665136622,1.19548703,837.3,836.41,1.19097318]
[1766665136822,1.19548703,837.29,836.41,1.19097318]
[1766665137024,1.19548703,837.28,836.41,1.19097318]
[1766665137224,1.19548703,837.27,836.41,1.19097318]
[1766665137425,1.19548703,837.26,836.42,1.19097318]
[1766665137627,1.19548703,837.25,836.42,1.19097318]
[1766665137922,0.88942906,837.35,836.42,1.19097318]
[1766665138125,1.19548703,837.34,836.42,1.19097318]
[1766665138326,1.19548703,837.33,836.42,1.19097318]
[1766665138625,1.19548703,837.32,836.42,1.19097318]
[1766665138825,1.19548703,837.31,836.42,1.19097318]
[1766665139026,1.19548703,837.3,836.42,1.19097318]
[1766665139226,1.19548703,837.29,836.42,1.19097318]
[1766665139527,1.19548703,837.28,836.42,1.19097318]
[1766665139727,1.19548703,837.27,836.42,1.19097318]
[1766665140022,1.19548703,837.26,836.42,1.19097318]
[1766665140222,1.19548703,837.25,836.42,1.19097318]
[1766665140522,1.19548703,837.24,836.42,1.19097318]
[1766665140726,0.88942906,837.34,836.42,1.19097318]
[1766665140924,1.19548667,837.33,836.42,1.19097318]
[1766665141123,1.19548667,837.32,836.42,1.19097318]
[1766665141322,1.19548667,837.31,836.43,1.19097318]
[1766665141526,1.19548667,837.3,836.43,1.19097318]
[1766665141821,1.19548667,837.29,836.43,1.19097318]
[1766665142027,1.19548667,837.28,836.43,1.19097318]
[1766665142228,1.19548667,837.27,836.43,1.19097318]
[1766665142428,1.19548667,837.26,836.43,1.19097318]
[1766665142628,1.19548667,837.25,836.43,1.19097318]
[1766665142828,1.19548667,837.24,836.43,1.19097318]
[1766665143024,1.19548667,837.23,836.43,1.19097318]
[1766665143228,0.88942906,837.34,836.43,1.19097318]
[1766665143525,2.08491597,837.33,836.44,1.19097318]
[1766665143730,1.19548691,837.32,836.44,1.19097318]
[1766665143929,1.19548691,837.31,836.44,1.19097318]
[1766665144130,1.19548691,837.3,836.44,1.19097318]
[1766665144425,1.19548691,837.29,836.45,1.19097318]
[1766665144624,1.19548691,837.28,836.45,1.19097318]
[1766665144826,1.19548691,837.27,836.45,1.19097318]
[1766665145029,1.19548691,837.26,836.45,1.19097318]
[1766665145227,1.19548691,837.25,836.45,1.19097318]
[1766665145527,1.19548691,837.24,836.46,1.19097318]
[1766665145728,1.19548691,837.23,836.46,1.19097318]
[1766665145928,1.19548691,837.22,836.46,1.19097318]
[1766665146128,1.19548691,837.21,836.46,1.19097318]
[1766665146332,1.19548691,837.2,836.46,1.19097318]
[1766665146533,0.88942906,837.3,836.46,1.19097318]
[1766665146833,1.19548621,837.29,836.46,1.19097318]
[1766665147033,1.19548621,837.28,836.46,1.19097318]
[1766665147230,1.19548621,837.27,836.46,1.19097318]
[1766665147433,1.19548621,837.26,836.46,1.19097318]
[1766665147631,1.19548621,837.25,836.46,1.19097318]
[1766665147830,1.19548621,837.24,836.46,1.19097318]
[1766665148134,1.19548621,837.23,836.46,1.19097318]
[1766665148333,1.19548621,837.22,836.46,1.19097318]
[1766665148535,1.19548621,837.21,836.46,1.19097318]
[1766665148734,1.19548621,837.2,836.46,1.19097318]
[1766665148932,0.88942906,837.3,836.46,1.19097318]
[1766665149134,1.19548621,837.29,836.46,1.19097318]
[1766665149332,1.19548621,837.28,836.47,1.19097318]
[1766665149535,1.19548621,837.27,836.47,1.19097318]
[1766665149832,1.19548621,837.26,836.47,1.19097318]
[1766665150031,1.19548621,837.25,836.47,1.19097318]
[1766665150231,1.19548621,837.24,836.47,1.19097318]
[1766665150535,1.19548621,837.23,836.47,1.19097318]
[1766665150732,1.19548621,837.22,836.47,1.19097318]
[1766665150936,0.88942906,837.32,836.48,1.19097318]
[1766665151232,1.19541211,837.31,836.51,1.19097318]
[1766665151432,1.19541211,837.3,836.51,1.19097318]
[1766665151731,1.19541211,837.29,836.51,1.19097318]
[1766665151931,1.19541211,837.28,836.51,1.19097318]
[1766665152134,1.09728829,837.37,836.51,1.19097318]
[1766665152135,1.19541211,837.27,836.51,1.19097318]
[1766665152335,1.09728829,837.37,836.5,1.19097318]
[1766665152534,1.19541211,837.36,836.5,1.19097318]
[1766665152737,1.19541211,837.35,836.5,1.19097318]
[1766665152938,1.19541211,837.34,836.5,1.19097318]
[1766665153138,1.19541211,837.33,836.5,1.19097318]
[1766665153438,1.19541211,837.32,836.5,1.19097318]
[1766665153635,1.19541211,837.31,836.5,1.19097318]
[1766665153839,1.19541211,837.3,836.5,1.19097318]
[1766665154033,1.19541211,837.29,836.5,1.19097318]
[1766665154237,1.19541211,837.28,836.5,1.19097318]
[1766665154532,1.19541211,837.27,836.5,1.19097318]
[1766665154734,1.09728829,837.37,836.5,1.19097318]
[1766665154937,1.19541141,837.36,836.5,1.19097318]
[1766665155237,1.19541141,837.35,836.5,1.19097318]
[1766665155538,1.19541141,837.34,836.5,1.19097318]
[1766665155739,1.19541141,837.33,836.5,1.19097318]
[1766665155939,1.19541141,837.32,836.5,1.19097318]
[1766665156139,0.20785923,837.37,836.5,1.19097318]
[1766665156140,1.19541141,837.31,836.5,1.19097318]
[1766665156342,1.19541141,837.3,836.5,1.19097318]
[1766665156542,1.19541141,837.29,836.49,1.19097318]
[1766665156841,0.20785923,837.37,836.49,1.19097318]
[1766665156842,1.19541141,837.28,836.49,1.19097318]
[1766665157037,0.20785923,837.37,836.49,1.19097318]
[1766665157343,1.19541141,837.36,836.49,1.19097318]
[1766665157548,1.19541141,837.35,836.49,1.19097318]
[1766665157735,0.20785923,837.37,836.49,1.19097318]
[1766665157736,1.19541141,837.34,836.49,1.19097318]
[1766665157939,1.19541141,837.33,836.49,1.19097318]
[1766665158141,1.19541141,837.32,836.49,1.19097318]
[1766665158337,1.19541141,837.31,836.49,1.19097318]
[1766665158642,1.19541141,837.3,836.49,1.19097318]
[1766665158842,1.19541141,837.29,836.49,1.19097318]
[1766665159040,1.19541141,837.28,836.49,1.19097318]
[1766665159242,0.20785923,837.37,836.49,1.19097318]